Cogmind - Beta 13 @@@ ROGUE MODE // 2024.04.18 @ 23:16:31 Player: GregoriusTechneticies Result: Destroyed by Y-45 Defender with Beam Rifle Performance ------------- Evolutions (1) 500 Regions Visited (3) 600 Robots Destroyed (83) 415 Value Destroyed (1126) 1126 Prototype IDs (3) 60 Alien Tech Used (0) 0 Bonus (284) 284 TOTAL SCORE: 2985 Bonus ------- High Alert Combat Kills 74 Follower Combat Kills 247 Friendly Fire -37 Cogmind --------- Core Integrity 0/400 Matter 200/300 Energy 265/265 System Corruption 1% Temperature Cool (29) Movement Rolling (95) Ox1 Location -9/Storage Parts ------- > --- POWER (1) -------- Improved Ion Engine > --- PROPULSION (2) --- Wheel > --- UTILITY (4) ------ Structural Scanner Signal Interpreter Transport Network Coupler Utility Shielding > --- WEAPON (2) ------- Improved Assault Rifle Improved Assault Rifle > --- INVENTORY (5) ---- Cooled Ion Engine High-capacity Battery (250) Large Matter Pod (150) Improved Assault Rifle Flail Peak State ------------ > --- POWER ------------ Cooled Ion Engine > --- PROPULSION ------- Wheel Wheel > --- UTILITY ---------- Structural Scanner Improved Terrain Scanner Seismic Detector Utility Shielding > --- WEAPON ----------- Improved Assault Rifle Improved Assault Rifle > --- INVENTORY -------- Cooled Ion Engine High-capacity Battery Large Matter Pod Improved Assault Rifle Flail [Rating: 18] Favorites ----------- Power Light Ion Engine Engine Light Ion Engine Propulsion Wheel Wheel Wheel Utility Utility Shielding Device Seismic Detector Storage High-capacity Battery Processor Signal Interpreter Protection Utility Shielding Weapon Improved Assault Rifle Energy Gun Medium Laser Ballistic Gun Improved Assault Rifle Impact Weapon Flail Build | -11 -10 -9 -9 ------- Run | Yrd Mat Mat Sto Slots Evolved 2 | . . 2 . Power . | . . . . Propulsion . | . . . . Utility 2 | . . 2 . Weapon . | . . . . Parts Attached 73 | 9 1 7 56 Power 11 | 1 . 2 8 Engine 11 | 1 . 2 8 Core . | . . . . Reactor . | . . . . Propulsion 26 | 2 . 3 21 Treads . | . . . . Leg . | . . . . Wheel 26 | 2 . 3 21 Hover . | . . . . Flight . | . . . . Utility 22 | 4 . 2 16 Device 14 | 4 . 2 8 Storage 1 | . . . 1 Processor 3 | . . . 3 Hackware . | . . . . Protection 4 | . . . 4 Artifact . | . . . . Weapon 14 | 2 1 . 11 Energy Gun 7 | 2 1 . 4 Energy Cannon . | . . . . Ballistic Gun 5 | . . . 5 Ballistic Cannon . | . . . . Launcher . | . . . . Special Weapon . | . . . . Impact Weapon 2 | . . . 2 Slashing Weapon . | . . . . Piercing Weapon . | . . . . Special Melee Weapon . | . . . . Unidentified Prototypes 3 | . . . 3 Parts Lost 15 | . . . 15 Power 1 | . . . 1 Propulsion 7 | . . . 7 Utility 3 | . . . 3 Weapon 4 | . . . 4 Highest Loss Streak 5 | . . . 5 To Critical Strikes . | . . . . Average Slot Usage (%) 88 | . 100 79 88 Engine 10 | . 14 11 10 Wheel 18 | . 28 22 16 Device 21 | . 28 24 20 Storage 4 | . . . 4 Processor 5 | . . . 6 Protection 8 | . . . 10 Energy Gun 6 | . 28 22 2 Ballistic Gun 14 | . . . 16 Naked Turns . | . . . . Heaviest Build 22 | 8 9 14 22 Greatest Support 20 | 20 20 20 20 Greatest Overweight (x) 6 | . . . 6 Average Overweight (x) . | . . . . Largest Inventory Capacity 5 | 5 5 5 5 Average Capacity 5 | 5 5 5 5 Most Carried 5 | 5 5 5 5 Average Carried 4 | 3 4 4 4 Final Capacity 5 | 5 5 5 5 Final Carried 5 | 5 5 5 5 Class Distribution -------------------- 64% | Scavenger-Mutant 35% | Mutant Dominant Class ---------------- Mutant | -10/Materials Scavenger-Mutant | -9/Materials Scavenger-Mutant | -9/Storage Resources | -11 -10 -9 -9 ----------- Run | Yrd Mat Mat Sto Matter Collected 1865 | 290 . 162 1413 Remotely . | . . . . Salvage Created 2750 | 313 . 157 2280 Parts 200 | 31 . 6 163 Haulers Intercepted 6 | . . . 6 Recyclers Shooed 7 | . . 1 6 Parts Field Recycled . | . . . . Retrieved Matter . | . . . . Parts Self-Destructed . | . . . . Prevented . | . . . . Kills | -11 -10 -9 -9 ------- Run | Yrd Mat Mat Sto Combat Hostiles Destroyed 25 | . . 1 24 Melee 2 | . . . 2 Guns 22 | . . 1 21 Classes Destroyed 13 | 3 . 1 9 Worker 26 | 2 . 1 23 Builder 7 | . . . 7 Tunneler 11 | 9 . 1 1 Hauler 6 | . . . 6 Recycler 6 | 1 . 1 4 Mechanic 2 | . . . 2 Operator 1 | . . . 1 Watcher 2 | . . . 2 Swarmer 4 | . . . 4 Grunt 10 | . . . 10 Duelist 2 | . . . 2 Protector 1 | . . . 1 Sentry 8 | . . 1 7 Best Kill Streak 11 | 7 . 3 11 Combat Bots Only 4 | . . 1 4 Max Kills in Single Turn 2 | 1 . 1 2 Gunslinging 1 | . . . 1 Exploded . | . . . . Melee 1 | . . . 1 Uniques/NPCs Destroyed . | . . . . Combat | -11 -10 -9 -9 -------- Run | Yrd Mat Mat Sto Hostile Shots Fired 179 | . 10 11 158 Missed 43 | . 1 1 41 Damage Taken 1956 | . 72 216 1668 Core 439 | . 34 45 360 Absorbed by Shields . | . . . . Redirected to Shielding 41 | . . . 41 Core Remaining (%) 93 | 100 86 . . Volleys Fired 214 | 25 . 17 172 Largest 2 | 2 . 2 2 Hottest 100 | 90 . 100 100 Shots Fired 398 | 50 . 34 314 Gun 398 | 50 . 34 314 Cannon . | . . . . Launcher . | . . . . Special . | . . . . Kinetic 266 | . . . 266 Thermal 132 | 50 . 34 48 Explosive . | . . . . Electromagnetic . | . . . . Robot Hit Streak 19 | 6 . 14 19 Robot Miss Streak 3 | 2 . 2 3 Penetration Max . | . . . . Secondary Targets 3 | . . . 3 Max Gunslinging Chain 1 | . . . 1 Shots Hit Robots 274 | 29 . 24 221 Core Hits 113 | 13 . 7 93 Critical Kills 1 | . . . 1 Critical Parts Destroyed 1 | . . . 1 Critical Strikes 8 | 1 . 4 3 Burn 6 | 1 . 4 1 Destroy 1 | . . . 1 Smash 1 | . . . 1 Melee Attacks 11 | . . . 11 Impact 11 | . . . 11 Slashing . | . . . . Piercing . | . . . . Sneak Attacks . | . . . . Combat Hostiles . | . . . . Follow-up Attacks . | . . . . Damage Inflicted 4014 | 339 . 313 3362 Guns 3827 | 339 . 313 3175 Cannons . | . . . . Explosions . | . . . . Melee 187 | . . . 187 Ramming . | . . . . Kinetic 2763 | . . . 2763 Thermal 1064 | 339 . 313 412 Explosive . | . . . . Electromagnetic . | . . . . Impact 187 | . . . 187 Slashing . | . . . . Piercing . | . . . . Highest Corruption 1 | . . 1 1 Average Corruption 1 | . . 1 1 Corruption Purged . | . . . . Corruption Blocked . | . . . . Effects 16 | . . 1 15 Message Errors 3 | . . . 3 Matter Fused 4 | . . 1 3 Heat Flow Errors 5 | . . . 5 Parts Rejected 1 | . . . 1 Data Loss (minor) 1 | . . . 1 Data Loss (major) 1 | . . . 1 Weapon Failures 1 | . . . 1 Overload Shots . | . . . . Overflow Damage 45 | . . . 45 Projectiles . | . . . . Explosions . | . . . . Melee 45 | . . . 45 Knockbacks . | . . . . Impact . | . . . . Kinetic . | . . . . Secondary . | . . . . Self-Inflicted Damage . | . . . . Shots . | . . . . Rammed . | . . . . Targets Rammed . | . . . . Kicked . | . . . . Crushed . | . . . . Highest Temperature 255 | 120 . 255 215 Average Temperature 82 | 44 . 145 77 Received Heat Transfer 555 | . . 45 510 Siege Activations . | . . . . Robots Corrupted . | . . . . Combat Hostiles . | . . . . Parts Fried . | . . . . Impact Corruptions 2 | . . . 2 Robots Melted . | . . . . Combat Hostiles . | . . . . Parts Melted 5 | 2 . 1 2 Heat Transferred 3401 | 1015 . 1221 1165 Parts Sabotaged . | . . . . Parts Stolen . | . . . . Parts Stripped . | . . . . Power Chain Reactions . | . . . . Alert | -11 -10 -9 -9 ------- Run | Yrd Mat Mat Sto Peak Influence 604 | 60 83 84 604 Initial 39 | . 39 34 35 Average 232 | 31 50 59 301 Maximum Alert Level 2 | . . . 2 Low Security (%) 51 | 100 100 100 34 Level 1 19 | . . . 27 Level 2 28 | . . . 38 Level 3 . | . . . . Level 4 . | . . . . Level 5 . | . . . . High Security . | . . . . Max Security . | . . . . Squads Dispatched 7 | . . . 7 Investigation 1 | . . . 1 Extermination . | . . . . Reinforcement 2 | . . . 2 Assault 2 | . . . 2 Garrison 2 | . . . 2 Intercept . | . . . . Searches Triggered . | . . . . Construction Impeded 2 | . . . 2 Haulers Reinforced . | . . . . Active Scanning Responses . | . . . . Cargo Convoy Interrupts . | . . . . Stealth | -11 -10 -9 -9 --------- Run | Yrd Mat Mat Sto Distress Signals 6 | . . 1 5 Communications Jammed . | . . . . Distress Signals . | . . . . Times Spotted 50 | . 5 5 40 Peak Tracking Total 6 | . 5 3 6 Tactical Retreats 1 | . 1 . . Traps | -11 -10 -9 -9 ------- Run | Yrd Mat Mat Sto Traps Triggered 6 | . . 1 5 Indirectly . | . . . . Trap Hack Attempts . | . . . . Triggered . | . . . . Disarmed . | . . . . Reprogrammed . | . . . . Reused . | . . . . Traps Extracted . | . . . . Installed . | . . . . Triggered . | . . . . Machines | -11 -10 -9 -9 ---------- Run | Yrd Mat Mat Sto Machines Disabled 1 | . . . 1 Max in Single Turn 1 | . . . 1 Machines Repaired . | . . . . Machines Dismantled . | . . . . Machines Sabotaged . | . . . . Overloaded Fab Kills . | . . . . Hacking | -11 -10 -9 -9 --------- Run | Yrd Mat Mat Sto Machines Accessed 15 | . 2 1 12 Terminals 12 | . 2 1 9 Fabricators . | . . . . Repair Stations . | . . . . Recycling Units 2 | . . . 2 Scanalyzers . | . . . . Garrison Access 1 | . . . 1 Total Hacks 38 | . 5 3 30 Successful 18 | . 2 1 15 Failed 20 | . 3 2 15 Catastrophic 6 | . 1 1 4 Database Lockouts . | . . . . Manual 30 | . 5 3 22 Terminals 33 | . 5 3 25 Fabricators . | . . . . Repair Stations . | . . . . Recycling Units 3 | . . . 3 Scanalyzers . | . . . . Garrison Access 2 | . . . 2 Terminal Hacks 7 | . . . 7 Robot Analysis 1 | . . . 1 Open Door 2 | . . . 2 Level Access Points 1 | . . . 1 Branch Access Points 1 | . . . 1 Terminal Index 1 | . . . 1 Unreport Threat 1 | . . . 1 Fabricator Hacks . | . . . . Repair Station Hacks . | . . . . Recycling Unit Hacks 2 | . . . 2 Retrieve Components 2 | . . . 2 Scanalyzer . | . . . . Garrison Access Hacks . | . . . . Unauthorized Hacks 9 | . 2 1 6 Terminals 9 | . 2 1 6 Botnet 9 | . 2 1 6 Fabricators . | . . . . Repair Stations . | . . . . Recycling Units . | . . . . Scanalyzers . | . . . . Garrison Access . | . . . . Data Cores Recovered . | . . . . Used . | . . . . Hacking Detections 11 | . 2 1 8 Full Trace Events 2 | . . . 2 Feedback Events . | . . . . Feedback Blocked . | . . . . Robot Schematics Acquired . | . . . . Robots Built . | . . . . Authchips . | . . . . Time . | . . . . Total Robot Build Rating . | . . . . Part Schematics Acquired . | . . . . Parts Built . | . . . . Authchips . | . . . . Time . | . . . . Total Part Build Rating . | . . . . Parts Repaired . | . . . . Time . | . . . . Parts Recycled . | . . . . Recycled Matter . | . . . . Retrieved Matter . | . . . . Retrieved Components 12 | . . . 12 Parts Scanalyzed . | . . . . Part Schematics Acquired . | . . . . Parts Damaged . | . . . . Bothacking | -11 -10 -9 -9 ------------ Run | Yrd Mat Mat Sto Used RIF Installer . | . . . . Robots Hacked . | . . . . Non-combat . | . . . . Combat . | . . . . Robot Hacks Applied . | . . . . Relay Couplers Released . | . . . . Fabnet Peak Effective % . | . . . . Robots Rewired . | . . . . Allies Hacked . | . . . . Hacks Repelled . | . . . . Allies | -11 -10 -9 -9 -------- Run | Yrd Mat Mat Sto Total Allies 2 | . . . 2 Largest Group 2 | . . . 2 Highest-Rated Group 62 | . . . 62 Highest-Rated Ally 31 | . . . 31 Total Orders . | . . . . Ally Attacks 34 | . . . 34 Total Damage 583 | . . . 583 Kills 9 | . . . 9 Allies Corrupted . | . . . . Allies Melted . | . . . . Intel | -11 -10 -9 -9 ------- Run | Yrd Mat Mat Sto Robot Analysis Total 1 | . . . 1 Derelict Logs Recovered . | . . . . Drone Launches . | . . . . Drone Recoveries . | . . . . Exploration | -11 -10 -9 -9 ------------- Run | Yrd Mat Mat Sto Turns Passed 2117 | 286 101 183 1547 Spaces Moved 1348 | 177 116 110 945 Core 62 | 2 . . 60 Treads . | . . . . Legs . | . . . . Wheels 1286 | 175 116 110 885 Hover . | . . . . Flight . | . . . . Fastest Speed 50 | 50 80 80 80 Average Speed 88 | 79 80 80 92 Slowest Speed 350 | 80 80 80 350 Overloaded Moves . | . . . . Propulsion Burnouts . | . . . . Robots Hopped . | . . . . Cave-ins Triggered . | . . . . Exploration Rate (%) 34 | 6 32 13 85 Regions Visited 3 Branch Regions 1 Pre-discovered Areas . | . . . . Known Exits Taken . | . . . . Unknown Exits Taken 3 | 1 1 1 . Scrap Searched . | . . . . Spaces Dug . | . . . . Terrain Destroyed . | . . . . Melee . | . . . . Projectile . | . . . . AOE . | . . . . Terrain Rammed . | . . . . Walls Destroyed . | . . . . Machines Disabled . | . . . . Actions | -11 -10 -9 -9 --------- Run | Yrd Mat Mat Sto Total 1869 | 281 124 171 1293 Wait 139 | 51 5 32 51 Move 1345 | 176 115 109 945 Hop . | . . . . Pick Up 21 | 12 1 1 7 Fast Attach 39 | 7 1 2 29 Attach 4 | . . . 4 Detach 1 | . . . 1 Swap 30 | 2 . 5 23 Drop 49 | 8 2 5 34 Fire 214 | 25 . 17 172 Melee 11 | . . . 11 Ram . | . . . . Kick . | . . . . Crush . | . . . . Escape Stasis 16 | . . . 16 Rewire . | . . . . Trap . | . . . . Miscellaneous . | . . . . Route ------- -11/Scrapyard -10/Materials -9/Materials -9/Storage (discovered 2 exits: Mat / Rec) History --------- Turn | Location | Event 21 | -11/Scrapyard | Discovered new exit (range 15) 287 | -11/Scrapyard | Entered Materials 314 | -10/Materials | Build established: Mutant 377 | -10/Materials | Discovered new exit (range 15) 388 | -10/Materials | Entered another Materials area 388 | -9/Materials | Evolved 2 slots: Utility x2 568 | -9/Materials | Discovered new exit (range 4) 571 | -9/Materials | Entered Storage 572 | -9/Storage | Identified exit to Materials 744 | -9/Storage | Core integrity fell below 50% 771 | -9/Storage | Lost 5 parts (1p2n2w) 1113 | -9/Storage | Build established: Scavenger-Mutant 1115 | -9/Storage | Identified exit to Recycling 1176 | -9/Storage | Met a pair of Derelict thieves 1227 | -9/Storage | Core integrity fell below 20% 1283 | -9/Storage | Lost 5 parts (2n1u2w) 1597 | -9/Storage | Garrison activated, responded to threat 1745 | -9/Storage | Garrison activated, responded to threat 2118 | -9/Storage | Destroyed by Y-45 Defender with Beam Rifle Last Messages --------------- 02006_ K-01 Serf collects debris. 02021_ Connecting with Recycling Unit... >>Retrieve(Components) Retrieving 2 components... Hvy. EM Pulse Gun Arm. Wheel 02048_ Connecting with Terminal... >>Trojan(Botnet) Trojan loaded successfully. Testing... Terminal linked with 5 systems. Awaiting botnet instructions. >>Alert(Purge) Purged threat record, alert level lowered. 02059_ Connecting with Door Terminal... 02060_ Discarded Signal Interpreter. 02066_ BO&EOMK GPTW#IBIV6XLE&BW9&N| 02098_ Dropped Wheel. 02101_ System corrupted: Heat flow error (+157). 02103_ Wheel destroyed. Map ----- +----------------------------------------------------+ | #########?#######????#?????##] !############ | | # """""?##* ##??????#?#?##%=!# !! T # | | # """"" # ##############*==# !! ## | | # """"" ## !##########?###=* # ! ## | | # ## =# """ #######= *#= """" ## | | + ##] # """ ####### ==+%* """" ## | | # ## ! # """ +%!| [[#% """" ## | | # ##! # #!= = = [# """" ## | | # ####+# ] # = # ## | | ########+##### + # * ############ | | ####### ##### ##+##### ######+############# | | #####T# ##### ##### ## #####???? | | ##?## ## #####???? | | #### ##### ##### ## "" ##???? | | ####[##### ##### ## G"##???? | | #####=##### + """ """ "" ##???? | | #####+#####+##### ##### """ """ #####???? | | # !%! ##### ##### """ """ #####???? | | # ##### ##### ##??????? | | # ##### ##+################??????? | | + + # k ######??????? | | # # #= ##??????????? | | # [ # # /! !##??????????? | | # !=! # # ##??????????? | | #########"### # ##??????????? | | ######## ### #######@#######??????????? | | [ ##### #####T??????????? | | ^^ ###### ##?## Y ???????>??????? | | ###### ##?## [ ???????????? | | ########+####### ##?## #####???????????? | | ##### + ##?###+#######???????????? | | [# """ # ##? ??????????????? | | # "" [" # ##???????????????????????? | | # "=""[" + ##???????????????????????? | | """ # "[""[" ######???????????????????????? | | """ # "]"""" ######???????????????????????? | | """ # """ ##???????????????????????????? | | """ # ##???????????????????????????? | | ################???????????????????????????? | | | | | | | | | | | | | | | | | | | | | | | +----------------------------------------------------+ Best States ------------- Heat Dissipation 28 Energy Generation 14 Energy Capacity 530 Matter Stores 300 Matter Capacity 300 Sight Range 16 Terrain Scan Range 16 Terrain Scan Density 10 Utility Shielding 33 Evasion (%) 44 Item Schematics ----------------- None Robot Schematics ------------------ None Fabricated ------------ Nothing Alien Tech Used ----------------- None Achievements -------------- None Challenges ------------ None Game ------ Seed DynamicTrapComputer Manual? 0 Play Time 00:34:42 Cumulative 38.8 hours Start 2024.04.18 @ 22:40:28 End 2024.04.18 @ 23:16:31 Sessions 1 Manual Loads 0 Difficulty Rogue Special Mode None Game No. 53 Rogue 38 Adventurer 0 Explorer 15 Win Type - Total 0 Types 0/0/0/0/0/0/0/0/0 Lore% 22 Gallery% 32 Achievement% 23 Wizard Run 0 Options --------- Layout 1 ASCII 0 Keyboard 0 Movement Mouse Keybinds 0 Fullscreen 1 Font 24/Smallcaps Map View 50x35 Zoom Use 0% Tactical HUD 1 Map Filters NONE Filters NONE Steam 1 RUN: 6bd79341-3d38-401e-91a9-258bc8c94783